bitfinex/quotes_SOLUSD_20251124
["timestamp","ask_amount","ask_price","bid_price","bid_amount"]
[1763990065418,0.71,130.55,130.51,17.19612789]
[1763990065920,3.87208926,130.55,130.51,14.03403863]
[1763990066248,3.16208926,130.54,130.5,10.17098926]
[1763990066415,3.16208926,130.54,130.51,0.24]
[1763990066615,5.65084542,130.55,130.51,0.24]
[1763990068927,4.94084542,130.54,130.5,23.82286632]
[1763990069130,5.65084542,130.54,130.5,9.78882769]
[1763990069343,4.94084542,130.54,130.5,9.78882769]
[1763990069539,4.94084542,130.54,130.49,28.08180542]
[1763990069540,4.94084542,130.52,130.49,1.6]
[1763990069924,5.65084542,130.52,130.48,9.78882769]
[1763990070458,0.71,130.52,130.48,10.02882769]
[1763990071143,0.71,130.52,130.49,23.06]
[1763990071446,0.71,130.52,130.48,10.02882769]
[1763990072631,0.71,130.52,130.48,14.96967311]
[1763990074156,0.71,130.52,130.49,0.24]
[1763990075165,0.71,130.52,130.49,5.18084542]
[1763990075659,0.71,130.54,130.5,14.96967311]
[1763990076869,4.94084542,130.52,130.49,5.02]
[1763990077066,4.94084542,130.53,130.49,5.02]
[1763990077368,4.94084542,130.53,130.49,5.26]
[1763990077551,5.65084542,130.53,130.49,5.26]
[1763990077951,4.94084542,130.51,130.47,13.20882769]
[1763990078645,0.71,130.5,130.47,13.20882769]
[1763990080278,4.94084542,130.51,130.47,13.20882769]
[1763990080463,5.65084542,130.51,130.47,13.44882769]
[1763990080769,0.71,130.5,130.47,13.20882769]
[1763990080957,0.71,130.5,130.47,3.42]
[1763990081963,0.71,130.5,130.47,5.02]
[1763990083875,0.71,130.5,130.47,5.26]
[1763990084058,0.71,130.5,130.47,5.02]
[1763990086774,0.71,130.5,130.47,1.6]
[1763990086975,4.94084542,130.48,130.47,1.6]
[1763990087168,0.67,130.48,130.45,14.80882769]
[1763990087472,0.67,130.48,130.45,15.04882769]
[1763990089483,5.61084542,130.48,130.44,0.2]
[1763990089780,4.94084542,130.46,130.44,0.2]
[1763990090276,4.94084542,130.45,130.44,0.2]
[1763990090472,5.61084542,130.45,130.44,0.2]
[1763990090783,23.73180542,130.45,130.44,0.2]
[1763990091160,18.79096,130.45,130.44,0.2]
[1763990091374,23.73180542,130.45,130.44,0.2]
[1763990095283,23.87396699,130.45,130.44,0.2]
[1763990095687,0.14216157,130.44,130.4,0.2]
[1763990095857,23.06180542,130.41,130.4,0.2]
[1763990096183,23.76180542,130.41,130.4,0.2]
[1763990096571,18.82096,130.41,130.4,0.2]
[1763990096777,4.94084542,130.41,130.4,0.2]
[1763990097400,5.64084542,130.41,130.4,0.2]
[1763990100400,23.76180542,130.41,130.4,0.2]
[1763990100974,0.7,130.47,130.4,0.87]
[1763990101173,4.94084542,130.44,130.4,0.87]
[1763990101479,4.94084542,130.42,130.4,0.2]
[1763990101691,4.94084542,130.44,130.41,0.67]
[1763990101899,23.06180542,130.44,130.41,0.67]
[1763990102613,4.94084542,130.45,130.41,0.67]
[1763990102998,4.94084542,130.44,130.41,0.67]
[1763990103712,4.94084542,130.46,130.41,0.67]
[1763990103886,5.64084542,130.46,130.41,0.67]
[1763990104218,4.94084542,130.46,130.42,9.78882769]
[1763990104512,4.94084542,130.47,130.42,14.72967311]
[1763990104715,4.94084542,130.47,130.43,0.67]
[1763990105291,4.94084542,130.45,130.43,0.67]
[1763990106411,0.7,130.47,130.43,0.67]
[1763990106606,4.94084542,130.46,130.43,0.67]
[1763990106916,4.94084542,130.48,130.43,0.67]
[1763990107504,4.94084542,130.47,130.43,0.67]
[1763990107825,4.94084542,130.46,130.43,0.67]
[1763990109421,4.94084542,130.44,130.4,0.87]
[1763990109615,4.94084542,130.42,130.4,0.87]
[1763990110117,4.94084542,130.41,130.4,0.2]
[1763990110318,4.94084542,130.42,130.4,0.2]
[1763990110512,0.7,130.43,130.4,0.2]
[1763990110513,4.94084542,130.43,130.4,0.87]
[1763990110994,4.94084542,130.43,130.41,0.67]
[1763990111897,4.94084542,130.42,130.4,0.2]
[1763990112098,4.94084542,130.42,130.4,0.87]
[1763990113109,18.82096,130.45,130.41,0.67]
[1763990113423,4.94084542,130.43,130.4,0.87]
[1763990113916,4.94084542,130.42,130.4,0.87]
[1763990114120,4.94084542,130.42,130.4,0.2]
[1763990114509,4.94084542,130.42,130.4,0.87]
[1763990115015,4.94084542,130.43,130.4,0.87]
[1763990115194,4.94084542,130.42,130.4,0.87]
[1763990115396,0.7,130.44,130.4,0.2]
[1763990115617,4.94084542,130.42,130.4,0.87]
[1763990116400,4.94084542,130.42,130.4,0.2]
[1763990116602,5.64084542,130.42,130.4,0.2]
[1763990116816,4.94084542,130.42,130.4,0.2]
[1763990117123,4.94084542,130.42,130.4,0.87]
[1763990118222,0.7,130.44,130.4,0.87]
[1763990118416,4.94084542,130.42,130.4,0.87]
[1763990120120,4.94084542,130.41,130.4,0.2]
[1763990122232,5.64084542,130.41,130.4,0.2]
[1763990122539,0.66,130.41,130.4,0.2]
[1763990122828,5.60084542,130.41,130.4,0.2]
[1763990126833,0.66,130.41,130.4,0.2]
[1763990127123,5.60084542,130.41,130.4,0.2]
[1763990127644,4.94084542,130.41,130.4,0.2]
[1763990128103,4.94084542,130.42,130.4,0.9]
[1763990128632,3.16810976,130.44,130.41,0.7]
[1763990129926,0.66,130.49,130.42,3.16810976]
[1763990130115,3.16810976,130.46,130.43,0.7]
[1763990130633,3.16810976,130.45,130.43,0.7]
[1763990133751,3.16810976,130.44,130.43,0.7]
[1763990133954,3.16810976,130.44,130.4,0.9]
[1763990134137,3.16810976,130.44,130.41,0.7]
[1763990134541,18.12096,130.45,130.41,0.7]
[1763990134741,21.28906976,130.45,130.41,0.7]
[1763990134956,3.16810976,130.43,130.41,0.7]
[1763990135265,3.16810976,130.42,130.4,0.9]
[1763990135560,3.16810976,130.42,130.4,0.2]
[1763990135760,3.16810976,130.41,130.4,0.2]
[1763990136265,3.82810976,130.41,130.4,0.2]
[1763990136568,3.16810976,130.41,130.4,0.2]
[1763990136759,3.82810976,130.41,130.4,0.2]
[1763990137337,25.36906976,130.41,130.4,0.2]
[1763990137540,28.53717952,130.41,130.4,0.2]
[1763990137855,38.18367037,130.41,130.37,0.2]
[1763990138042,3.16810976,130.38,130.37,0.2]
[1763990138431,21.94906976,130.38,130.37,0.2]
[1763990139137,3.82810976,130.38,130.37,0.2]
[1763990139550,18.12096,130.39,130.37,0.2]
[1763990139749,3.16810976,130.38,130.37,0.2]
[1763990139954,24.70906976,130.39,130.37,0.2]
[1763990140160,3.16810976,130.38,130.37,0.2]
[1763990140667,18.78096,130.38,130.37,0.2]
[1763990140863,3.42,130.39,130.37,0.2]
[1763990141065,6.58810976,130.39,130.37,0.2]
[1763990142245,3.16810976,130.38,130.37,0.2]
[1763990144169,3.16810976,130.39,130.37,0.2]
[1763990144469,3.16810976,130.39,130.37,0.9]
[1763990144878,21.28906976,130.4,130.37,0.9]
[1763990145074,18.12096,130.4,130.38,0.7]
[1763990145773,3.16810976,130.39,130.37,0.2]
[1763990145966,3.16810976,130.39,130.37,0.9]
[1763990146477,3.16810976,130.39,130.37,0.2]
[1763990147662,3.16810976,130.39,130.37,0.91]
[1763990149378,3.16810976,130.39,130.37,0.2]
[1763990149850,3.16810976,130.38,130.37,0.2]
[1763990150253,3.87810976,130.38,130.37,0.2]
[1763990150665,3.42,130.39,130.37,0.91]
[1763990150867,7.29810976,130.39,130.37,0.2]
[1763990152986,3.87810976,130.39,130.37,0.2]
[1763990153780,3.16810976,130.38,130.37,0.2]
[1763990154670,3.83810976,130.38,130.37,0.2]
[1763990154871,3.16810976,130.38,130.37,0.2]
[1763990156389,3.83810976,130.38,130.37,0.2]
[1763990158571,3.42,130.4,130.37,0.2]
[1763990158791,3.16810976,130.38,130.37,0.2]
[1763990159389,3.83810976,130.38,130.37,0.2]
[1763990160262,3.16810976,130.38,130.37,0.2]
[1763990160676,3.42,130.4,130.37,0.87]
[1763990160882,3.16810976,130.39,130.37,0.87]
[1763990162106,3.83810976,130.39,130.37,0.2]
[1763990162308,3.16810976,130.39,130.37,0.2]
[1763990162496,3.83810976,130.39,130.37,0.2]
[1763990163025,22.21096,130.41,130.37,0.87]
[1763990163210,3.16810976,130.4,130.37,0.87]
[1763990163397,7.25810976,130.41,130.38,0.67]
[1763990163727,3.16810976,130.4,130.38,0.67]
[1763990164213,3.83810976,130.4,130.37,0.87]
[1763990164642,3.16810976,130.38,130.37,0.2]
[1763990164790,24.70906976,130.38,130.37,0.2]
[1763990165134,25.37906976,130.38,130.37,0.2]
[1763990166313,21.54096,130.38,130.37,0.2]
[1763990166511,24.70906976,130.38,130.37,0.2]
[1763990166836,21.95906976,130.38,130.37,0.2]
[1763990170604,18.79096,130.38,130.37,0.2]
[1763990171026,21.95906976,130.38,130.37,0.2]
[1763990174041,18.12096,130.38,130.37,0.87]
[1763990174203,21.28906976,130.38,130.37,0.2]
[1763990174702,18.79096,130.38,130.37,0.2]
[1763990174905,21.95906976,130.38,130.37,0.2]
[1763990175933,18.79096,130.38,130.37,0.2]
[1763990176433,18.12096,130.38,130.37,0.2]
[1763990177017,18.79096,130.38,130.37,0.2]
[1763990178346,25.37906976,130.38,130.37,0.2]
[1763990188515,22.21096,130.38,130.37,0.2]
[1763990188719,27.16708393,130.38,130.37,0.2]
[1763990189333,27.3092455,130.38,130.37,0.2]
[1763990189647,18.97711319,130.38,130.37,0.2]
[1763990190424,5.7682855,130.38,130.37,0.2]
[1763990190746,21.54096,130.38,130.37,0.2]
[1763990191039,26.49708393,130.38,130.37,0.2]
[1763990191237,27.17708393,130.38,130.37,0.2]
[1763990192445,18.12096,130.38,130.37,0.9]
[1763990192645,21.54096,130.38,130.37,0.9]
[1763990192958,3.42,130.38,130.37,0.9]
[1763990195619,8.37612393,130.38,130.37,0.2]
[1763990196441,3.42,130.38,130.37,0.2]
[1763990196638,8.37612393,130.38,130.37,0.2]
[1763990199126,9.05612393,130.38,130.37,0.2]
[1763990201870,3.42,130.38,130.37,0.9]
[1763990202157,3.42,130.38,130.37,0.2]
[1763990202852,8.37612393,130.38,130.37,0.2]
[1763990203658,3.42,130.38,130.37,0.2]
[1763990204165,8.37612393,130.38,130.37,0.2]
[1763990205863,3.42,130.38,130.37,0.2]
[1763990206370,8.37612393,130.38,130.37,0.2]
[1763990207436,9.07612393,130.38,130.37,0.2]
[1763990208076,9.2182855,130.38,130.37,0.2]
[1763990208570,12.29438039,130.38,130.37,0.2]
[1763990212149,3.07609489,130.38,130.37,0.2]
[1763990212351,9.07612393,130.38,130.37,0.2]
[1763990216374,5.65612393,130.38,130.37,0.2]
[1763990216579,9.07612393,130.38,130.37,0.2]
[1763990217056,8.37612393,130.38,130.37,0.2]
[1763990217262,9.06612393,130.38,130.37,0.2]
[1763990218386,4.95612393,130.39,130.37,0.91]
[1763990218677,8.37612393,130.38,130.37,0.2]
[1763990219765,9.06612393,130.38,130.37,0.2]
[1763990221561,8.37612393,130.38,130.37,0.2]
[1763990222686,9.06612393,130.38,130.37,0.2]
[1763990230601,9.06612393,130.38,130.32,1.3454]
[1763990230814,4.95612393,130.36,130.32,1.1454]
[1763990231091,3.42,130.36,130.32,6.10152393]
[1763990231596,4.95612393,130.36,130.32,1.1454]
[1763990231796,21.26498793,130.37,130.32,18.80880425]
[1763990232094,4.95612393,130.36,130.32,1.1454]
[1763990232698,8.37612393,130.35,130.32,1.1454]
[1763990232897,4.95612393,130.34,130.3,1.3454]
[1763990233079,4.95612393,130.34,130.31,0.71]
[1763990233399,4.95612393,130.32,130.3,0.2]
[1763990233581,4.95612393,130.31,130.3,0.2]
[1763990233777,8.37612393,130.32,130.3,0.2]
[1763990236570,4.95612393,130.31,130.3,0.2]
[1763990237397,6.49727814,130.32,130.3,0.2]
[1763990237585,4.95612393,130.31,130.3,0.2]
[1763990238495,24.68498793,130.31,130.3,0.2]
[1763990239903,16.308864,130.31,130.3,0.2]
[1763990240102,3.42,130.33,130.3,0.91]
[1763990240606,8.37612393,130.33,130.3,0.2]
[1763990240807,3.42,130.33,130.3,0.2]
[1763990241106,3.42,130.33,130.3,0.91]
[1763990241107,8.37612393,130.33,130.3,0.91]
[1763990241407,8.37612393,130.33,130.3,0.2]
[1763990242009,4.95612393,130.32,130.3,0.2]
[1763990242580,8.37612393,130.33,130.3,0.2]
[1763990243516,3.42,130.33,130.3,0.2]
[1763990243807,8.37612393,130.33,130.3,0.2]
[1763990244116,4.95612393,130.32,130.3,0.2]
[1763990245114,4.95612393,130.31,130.3,0.2]
[1763990247801,21.26498793,130.31,130.3,0.2]
[1763990248346,16.308864,130.31,130.3,0.2]
[1763990248494,21.26498793,130.31,130.3,0.2]
[1763990250707,19.48320927,130.31,130.3,0.2]
[1763990250904,16.308864,130.31,130.3,0.2]
[1763990251111,19.48320927,130.31,130.3,0.2]
[1763990254530,22.90320927,130.31,130.3,0.2]
[1763990254726,23.58320927,130.31,130.3,0.2]
[1763990255117,26.66072417,130.31,130.3,0.2]
[1763990255740,26.80288574,130.31,130.3,0.2]
[1763990256814,36.59171343,130.31,130.3,0.2]
[1763990257848,0.14216157,130.29,130.28,0.2]
[1763990258132,9.78882769,130.28,130.27,0.2]
[1763990258331,16.81751823,130.28,130.27,0.2]
[1763990258844,13.64317296,130.28,130.27,0.2]
[1763990259347,0.14216157,130.27,130.26,0.2]
[1763990259514,20.11388792,130.27,130.26,0.2]
[1763990259712,16.308864,130.24,130.23,0.2]
[1763990259914,22.90320927,130.24,130.23,0.2]
[1763990260114,23.58320927,130.24,130.23,0.2]
[1763990260310,26.95755454,130.24,130.23,0.2]
[1763990262744,36.8885438,130.24,130.23,0.2]
[1763990263747,33.4685438,130.24,130.23,0.2]
[1763990263920,36.8885438,130.24,130.23,0.2]
[1763990264250,46.62559204,130.24,130.23,0.2]
[1763990264449,0.14216157,130.23,130.17,0.89]
[1763990264619,3.17434527,130.18,130.17,0.2]
[1763990264824,6.59434527,130.18,130.17,0.2]
[1763990265524,23.74660186,130.19,130.17,0.89]
[1763990265941,19.728864,130.19,130.18,0.69]
[1763990266321,7.43729835,130.2,130.18,0.69]
[1763990266527,10.61164362,130.2,130.18,0.69]
[1763990267137,3.17434527,130.19,130.17,0.2]
[1763990267451,3.17434527,130.19,130.17,0.89]
[1763990268655,6.59434527,130.18,130.17,0.2]
[1763990269427,3.42,130.18,130.17,0.2]
[1763990269632,6.59434527,130.18,130.17,0.2]
[1763990270350,23.62320927,130.18,130.17,0.2]
[1763990271544,16.856841,130.2,130.17,0.89]
[1763990271545,3.42,130.19,130.17,0.89]
[1763990271748,7.43729835,130.2,130.17,0.89]
[1763990271940,7.43729835,130.2,130.18,0.69]
[1763990272337,6.59434527,130.2,130.18,0.69]
[1763990272654,16.308864,130.21,130.18,0.69]
[1763990273058,19.728864,130.21,130.18,0.69]
[1763990274048,16.308864,130.21,130.18,0.69]
[1763990274558,19.728864,130.21,130.18,0.69]
[1763990274761,19.728864,130.21,130.17,0.2]
[1763990274964,3.17434527,130.18,130.17,0.2]
[1763990275559,6.59434527,130.18,130.17,0.2]
[1763990275852,3.42,130.18,130.17,0.2]
[1763990276060,3.42,130.18,130.17,0.86]
[1763990276230,16.308864,130.19,130.17,0.86]
[1763990276430,3.42,130.2,130.18,0.66]
[1763990276730,6.59434527,130.2,130.18,0.66]
[1763990277535,16.308864,130.21,130.18,0.66]
[1763990277762,4.01692076,130.22,130.18,3.83434527]
[1763990277936,6.59434527,130.22,130.19,0.66]
[1763990279251,22.90320927,130.23,130.19,0.66]
[1763990279453,22.90320927,130.23,130.19,3.83434527]
[1763990279655,19.728864,130.23,130.2,0.66]
[1763990279860,22.90320927,130.23,130.2,0.66]
[1763990280039,23.61320927,130.23,130.2,0.66]
[1763990280365,3.17434527,130.22,130.21,0.66]
[1763990280658,22.90320927,130.23,130.21,0.66]
[1763990281060,16.308864,130.23,130.21,0.66]
[1763990281264,4.01626069,130.24,130.21,3.83434527]
[1763990281558,6.59434527,130.25,130.21,3.83434527]
[1763990281761,6.59434527,130.25,130.22,0.66]
[1763990282447,3.17434527,130.24,130.22,0.66]
[1763990284255,3.42,130.25,130.22,0.66]
[1763990284256,6.59434527,130.25,130.22,0.66]
[1763990284437,3.17434527,130.24,130.22,0.66]
[1763990285836,6.59434527,130.25,130.22,0.66]
[1763990286975,3.17434527,130.25,130.22,0.66]
[1763990288640,12.69738108,130.34,130.24,3.17434527]
[1763990288835,3.17434527,130.28,130.24,3.17434527]
[1763990289036,3.17434527,130.28,130.24,0.66]
[1763990289263,3.17434527,130.28,130.25,0.66]
[1763990289960,3.17434527,130.29,130.25,3.83434527]
[1763990290173,4.01456185,130.3,130.25,3.83434527]
[1763990290372,3.17434527,130.29,130.26,0.66]
[1763990295240,26.91777112,130.3,130.26,0.66]
[1763990295852,27.62777112,130.3,130.26,0.66]
[1763990296042,24.45342585,130.3,130.26,0.66]
[1763990296248,27.62777112,130.3,130.26,0.66]
[1763990296452,22.90320927,130.31,130.27,3.17434527]
[1763990296971,22.90320927,130.31,130.28,0.66]
[1763990297177,20.438864,130.31,130.28,0.66]
[1763990297385,3.17434527,130.3,130.28,0.66]
[1763990297878,19.728864,130.31,130.28,0.66]
[1763990298060,3.42,130.34,130.29,3.17434527]
[1763990298376,23.61320927,130.34,130.29,3.17434527]
[1763990298549,22.90320927,130.34,130.3,0.66]
[1763990298748,3.88434527,130.33,130.3,0.66]
[1763990298980,20.19320927,130.33,130.3,0.66]
[1763990299371,16.308864,130.33,130.3,0.66]
[1763990299874,19.48320927,130.33,130.3,0.66]
[1763990300974,4.72294818,130.36,130.3,3.83434527]
[1763990301155,6.59434527,130.35,130.3,3.83434527]
[1763990301362,6.59434527,130.35,130.31,0.66]
[1763990301570,7.30434527,130.35,130.31,0.66]
[1763990301879,4.13,130.35,130.31,0.66]
[1763990302180,3.17434527,130.34,130.31,0.66]
[1763990302363,3.17434527,130.33,130.31,0.66]
[1763990302778,3.17434527,130.34,130.31,0.66]
[1763990302947,3.87434527,130.34,130.31,0.66]
[1763990303285,3.17434527,130.33,130.31,0.66]
[1763990305160,3.87434527,130.34,130.31,0.66]
[1763990309070,3.83008548,130.34,130.31,0.66]
[1763990309469,3.17434527,130.35,130.31,3.83434527]
[1763990309971,3.17434527,130.35,130.32,0.71]
[1763990310379,16.308864,130.36,130.32,3.88434527]
[1763990310570,0.1,130.37,130.33,3.17434527]
[1763990310761,0.1,130.37,130.33,3.88434527]
[1763990310967,3.27434527,130.37,130.34,0.71]
[1763990311477,0.1,130.37,130.34,0.71]
[1763990311879,0.1,130.37,130.35,3.17434527]
[1763990312384,0.1,130.37,130.36,0.71]
[1763990312558,0.1,130.37,130.35,0.71]
[1763990312961,0.1,130.37,130.35,5.66340424]
[1763990313263,0.1,130.37,130.36,4.95340424]
[1763990313601,0.1,130.37,130.36,0.71]
[1763990313776,0.1,130.37,130.36,5.66340424]
[1763990314988,0.1,130.37,130.34,17.46088835]
[1763990314989,0.1,130.37,130.35,4.95340424]
[1763990315187,0.1,130.37,130.35,5.66340424]
[1763990315683,0.1,130.37,130.36,0.71]
[1763990319190,0.1,130.37,130.35,4.95340424]
[1763990319191,0.1,130.37,130.34,4.95340424]
[1763990319369,0.1,130.37,130.36,0.71]
[1763990319681,5.75340424,130.37,130.33,5.66340424]
[1763990319885,5.75340424,130.37,130.33,0.71]
[1763990320085,5.65340424,130.36,130.32,6.35340424]
[1763990320288,4.95340424,130.35,130.31,15.45223193]
[1763990320488,5.65340424,130.35,130.31,0.71]
[1763990320693,0.7,130.34,130.31,0.71]
[1763990320993,0.7,130.34,130.3,8.35340424]
[1763990321202,5.65340424,130.34,130.3,9.06340424]
[1763990321576,0.7,130.34,130.3,9.06340424]
[1763990323271,5.65340424,130.34,130.3,9.06340424]
[1763990324611,0.7,130.34,130.31,0.71]
[1763990324810,0.7,130.36,130.32,4.95340424]
[1763990325271,0.7,130.36,130.32,5.66340424]
[1763990325592,0.7,130.36,130.33,5.66340424]
[1763990325890,16.408864,130.37,130.34,4.95340424]
[1763990325891,0.1,130.37,130.34,4.95340424]
[1763990326091,0.8,130.37,130.33,2.11]
[1763990326298,4.95340424,130.36,130.33,1.4]
[1763990326669,4.95340424,130.36,130.3,3.4]
[1763990326870,5.66340424,130.35,130.31,4.95340424]
[1763990327176,4.95340424,130.34,130.3,9.02340424]
[1763990327481,0.71,130.34,130.31,0.67]
[1763990327688,0.71,130.34,130.31,5.62340424]
[1763990327889,0.71,130.34,130.31,0.67]
[1763990328272,5.66340424,130.36,130.31,5.62340424]
[1763990328472,21.97226824,130.36,130.32,4.95340424]
[1763990328671,21.97226824,130.36,130.32,5.62340424]
[1763990328970,0.71,130.35,130.32,0.67]
[1763990329481,0.71,130.35,130.32,5.62340424]
[1763990329692,0.71,130.35,130.32,0.67]
[1763990329986,5.66340424,130.35,130.3,3.4]
[1763990330169,4.95340424,130.34,130.31,0.67]
[1763990330365,0.71,130.34,130.31,0.67]
[1763990330875,0.71,130.35,130.31,5.62340424]
[1763990331073,0.71,130.34,130.31,0.67]
[1763990332788,5.66340424,130.34,130.31,0.67]
[1763990335509,0.71,130.34,130.31,5.62340424]
[1763990335709,0.72,130.33,130.3,4.8]
[1763990335902,0.72,130.33,130.3,4.09]
[1763990337992,4.95340424,130.34,130.31,0.69]
[1763990338333,5.67340424,130.34,130.31,0.69]
[1763990339020,0.72,130.33,130.3,5.64340424]
[1763990340006,5.67340424,130.34,130.31,0.69]
[1763990340423,0.72,130.34,130.31,0.69]
[1763990340714,0.72,130.34,130.31,5.64340424]
[1763990341596,0.72,130.34,130.31,4.95340424]
[1763990341917,0.72,130.34,130.3,4.95340424]
[1763990342117,0.72,130.34,130.31,0.69]
[1763990342340,0.72,130.34,130.3,4.95340424]
[1763990342341,0.72,130.34,130.3,0.69]
[1763990342525,0.72,130.34,130.3,5.64340424]
[1763990344233,0.72,130.34,130.31,0.69]
[1763990344640,20.32116884,130.36,130.31,0.69]
[1763990344940,0.72,130.35,130.31,5.64340424]
[1763990345231,0.72,130.35,130.32,4.95340424]
[1763990345534,0.72,130.35,130.32,0.69]
[1763990346402,0.72,130.35,130.31,4.95340424]
[1763990346605,0.72,130.35,130.31,5.64340424]
[1763990347042,0.72,130.35,130.32,5.64340424]
[1763990347617,0.72,130.35,130.32,0.69]
[1763990348120,0.1,130.37,130.33,5.64340424]
[1763990348121,0.82,130.37,130.33,5.64340424]
[1763990348323,0.82,130.37,130.33,0.69]
[1763990348519,0.82,130.37,130.34,0.69]
[1763990349250,0.82,130.37,130.33,7.04340424]
[1763990349910,0.82,130.37,130.34,0.69]
[1763990350239,5.77340424,130.37,130.33,7.04340424]
[1763990350426,5.77340424,130.37,130.33,1.4]
[1763990350733,0.72,130.36,130.33,1.4]
[1763990350937,0.72,130.36,130.33,2.09]
[1763990351134,5.05340424,130.37,130.33,6.35340424]
[1763990351438,0.1,130.37,130.35,4.95340424]
[1763990352044,0.1,130.37,130.35,5.64340424]
[1763990352244,0.1,130.37,130.36,5.64340424]
[1763990356144,0.1,130.37,130.34,3.4]
[1763990356361,0.1,130.37,130.32,11.33098926]
[1763990356362,4.95340424,130.36,130.32,15.42098926]
[1763990356654,4.95340424,130.35,130.31,4.95340424]
[1763990356948,0.72,130.34,130.31,5.64340424]
[1763990357937,0.72,130.34,130.3,4.95340424]
[1763990358151,5.67340424,130.34,130.3,0.69]
[1763990358650,0.72,130.33,130.3,5.64340424]
[1763990359047,16.308864,130.38,130.37,294.22659576]
[1763990359349,21.26226824,130.38,130.37,294.22659576]
[1763990361135,21.98226824,130.38,130.37,294.22659576]
[1763990361756,22.12442981,130.38,130.37,294.22659576]
[1763990364924,25.52442981,130.38,130.37,294.22659576]
[1763990367642,35.3132575,130.38,130.37,294.22659576]
[1763990369952,30.35985326,130.38,130.37,294.22659576]
[1763990370264,35.3132575,130.38,130.37,294.22659576]
[1763990372761,16.308864,130.38,130.37,294.22659576]
[1763990372949,24.66226824,130.38,130.37,294.22659576]
[1763990374640,22.87952897,130.38,130.37,294.22659576]
[1763990375135,4.68102758,130.42,130.37,294.22659576]
[1763990375341,3.4,130.41,130.37,294.22659576]
[1763990375560,7.18169255,130.42,130.37,294.22659576]
[1763990375561,7.18169255,130.42,130.38,0.68]
[1763990375768,3.4,130.41,130.38,0.68]
[1763990376145,6.57066497,130.41,130.38,0.68]
[1763990378464,3.17066497,130.4,130.38,0.68]
[1763990379552,6.57066497,130.41,130.38,0.68]
[1763990379877,0.67,130.41,130.38,0.68]
[1763990380165,3.17066497,130.4,130.38,0.68]
[1763990380970,3.17066497,130.41,130.38,0.68]
[1763990381675,19.708864,130.42,130.41,294.22659576]
[1763990381872,16.308864,130.42,130.41,294.22659576]
[1763990382176,16.308864,130.42,130.41,294.90659576]
[1763990382587,16.308864,130.42,130.41,294.22659576]
[1763990385074,10.58110044,130.43,130.41,294.90659576]
[1763990385973,16.308864,130.43,130.42,0.68]
[1763990386272,4.00972033,130.43,130.42,0.68]
[1763990387074,4.00972033,130.43,130.41,294.22659576]
[1763990387075,7.1803853,130.43,130.41,294.22659576]
[1763990387286,3.17066497,130.42,130.41,294.22659576]
[1763990387960,23.56952897,130.42,130.41,294.22659576]
[1763990390963,0.24216157,130.45,130.41,294.22659576]
[1763990391168,17.503871,130.46,130.45,266.40518489]
[1763990391365,24.07453597,130.46,130.45,162.39177781]
[1763990391573,28.08515852,130.46,130.45,162.39177781]
[1763990392494,28.08515852,130.46,130.45,58.38568014]
[1763990393064,28.70732009,130.46,130.45,58.38568014]
[1763990393384,16.308864,130.43,130.38,0.7]
[1763990393587,3.4,130.42,130.38,0.7]
[1763990394070,3.17066497,130.41,130.38,0.7]
[1763990395383,6.57066497,130.42,130.38,0.7]
[1763990397698,3.4,130.42,130.38,0.7]